fUSD/lending_fUSD_20260226
["ID","MTS","AMOUNT","RATE_DAILY","PERIOD"]
[406726949,1772123444286,-500.0,0.0001312,2]
[406726950,1772123444297,-670.0,0.0001312,2]
[406726951,1772123444307,-500.0,0.0001312,2]
[406726952,1772123444316,-500.0,0.0001312,2]
[406726953,1772123444326,-500.0,0.0001312,2]
[406726954,1772123444336,-500.0,0.0001312,2]
[406726955,1772123444346,-500.0,0.0001312,2]
[406726956,1772123444355,-500.0,0.0001312,2]
[406726957,1772123444365,-500.0,0.0001312,2]
[406726958,1772123444375,-500.0,0.0001312,2]
[406726959,1772123444385,-500.0,0.0001312,2]
[406726960,1772123444548,-500.0,0.0001312,2]
[406726961,1772123444558,-500.0,0.0001312,2]
[406726962,1772123444570,-500.0,0.0001312,2]
[406726963,1772123444583,-500.0,0.0001312,2]
[406726964,1772123444592,-500.0,0.0001312,2]
[406726965,1772123444602,-500.0,0.0001312,2]
[406726966,1772123444613,-500.0,0.0001312,2]
[406726967,1772123444623,-500.0,0.0001312,2]
[406726968,1772123444633,-500.0,0.0001312,2]
[406726969,1772123444642,-500.0,0.0001312,2]
[406726970,1772123444651,-500.0,0.0001312,2]
[406726971,1772123444661,-500.0,0.0001312,2]
[406726972,1772123444671,-500.0,0.0001312,2]
[406726973,1772123444680,-500.0,0.0001312,2]
[406726974,1772123444690,-500.0,0.0001312,2]
[406726975,1772123444699,-500.0,0.0001312,2]
[406726976,1772123444708,-500.0,0.0001312,2]
[406726977,1772123444719,-500.0,0.0001312,2]
[406726978,1772123444728,-500.0,0.0001312,2]
[406726979,1772123444737,-500.0,0.0001312,2]
[406726980,1772123444747,-500.0,0.0001312,2]
[406726981,1772123444757,-500.0,0.0001312,2]
[406726982,1772123444766,-500.0,0.0001312,2]
[406726983,1772123444776,-500.0,0.0001312,2]
[406726984,1772123444785,-500.0,0.0001312,2]
[406726985,1772123444794,-500.0,0.0001312,2]
[406726986,1772123444804,-500.0,0.0001312,2]
[406726987,1772123444813,-500.0,0.0001312,2]
[406726988,1772123444823,-500.0,0.0001312,2]
[406726989,1772123444832,-500.0,0.0001312,2]
[406726990,1772123444841,-152.0758102,0.0001312,2]
[406726991,1772123444850,-500.0,0.0001312,2]
[406726992,1772123444860,-500.0,0.0001312,2]
[406726993,1772123444869,-500.0,0.0001312,2]
[406726994,1772123444879,-500.0,0.0001312,2]
[406726995,1772123444888,-500.0,0.0001312,2]
[406726996,1772123444898,-500.0,0.0001312,2]
[406726997,1772123444908,-500.0,0.0001312,2]
[406726998,1772123444918,-500.0,0.0001312,2]
[406726999,1772123444927,-500.0,0.0001312,2]
[406727000,1772123444938,-4991.64015429,0.00013146,2]
[406727001,1772123444947,-27067.80659463,0.00013278,2]
[406727002,1772123444956,-1000.0,0.00013429,2]
[406727003,1772123444966,-3000.0,0.00013568,2]
[406727004,1772123444975,-285.3136,0.00013598,2]
[406727005,1772123444984,-500.0,0.00013698,2]
[406727006,1772123444994,-500.0,0.00013698,2]
[406727007,1772123445004,-500.0,0.00013698,2]
[406727008,1772123445014,-500.0,0.00013698,2]
[406727009,1772123445024,-500.0,0.00013698,2]
[406727010,1772123445034,-500.0,0.00013698,2]
[406727011,1772123445043,-500.0,0.00013698,2]
[406727012,1772123445053,-500.0,0.00013698,2]
[406727013,1772123445063,-500.0,0.00013698,2]
[406727014,1772123445072,-500.0,0.00013698,2]
[406727015,1772123445082,-500.0,0.00013698,2]
[406727016,1772123445091,-500.0,0.00013698,2]
[406727017,1772123445101,-500.0,0.00013698,2]
[406727018,1772123445111,-500.0,0.00013698,2]
[406727019,1772123445121,-500.0,0.00013698,2]
[406727020,1772123445131,-500.0,0.00013698,2]
[406727021,1772123445140,-500.0,0.00013698,2]
[406727022,1772123445150,-500.0,0.00013698,2]
[406727023,1772123445159,-500.0,0.00013698,2]
[406727024,1772123445169,-500.0,0.00013698,2]
[406727025,1772123445179,-500.0,0.00013698,2]
[406727026,1772123445190,-500.0,0.00013698,2]
[406727027,1772123445199,-500.0,0.00013698,2]
[406727028,1772123445208,-368.2260392,0.00013698,2]
[406727029,1772123445219,-500.0,0.00013698,2]
[406727030,1772123445228,-500.0,0.00013698,2]
[406727031,1772123445238,-584.92775525,0.00013698,2]
[406727032,1772123445248,-318.18597163,0.00013698,2]
[406727033,1772123445257,-500.0,0.00013698,2]
[406727034,1772123445267,-500.0,0.00013698,2]
[406727035,1772123445277,-500.0,0.00013698,2]
[406727036,1772123445286,-500.0,0.00013698,2]
[406727037,1772123445297,-500.0,0.00013698,2]
[406727038,1772123445306,-500.0,0.00013698,2]
[406727039,1772123445316,-500.0,0.00013698,2]
[406727040,1772123445326,-500.0,0.00013698,2]
[406727041,1772123445336,-500.0,0.00013698,2]
[406727042,1772123445346,-500.0,0.00013698,2]
[406727043,1772123445355,-500.0,0.00013698,2]
[406727044,1772123445365,-500.0,0.00013698,2]
[406727045,1772123445375,-500.0,0.00013698,2]
[406727046,1772123445384,-269.57915282,0.00013698,2]
[406727047,1772123445394,-151.77928561,0.00013698,2]
[406727048,1772123445404,-500.0,0.00013698,2]
[406727049,1772123445413,-500.0,0.00013698,2]
[406727050,1772123445423,-568.60354988,0.00013698,2]
[406727051,1772123445432,-500.0,0.00013698,2]
[406727052,1772123445441,-500.0,0.00013698,2]
[406727053,1772123445451,-467.36158262,0.00013698,2]
[406727054,1772123445462,-500.0,0.00013698,2]
[406727055,1772123445471,-500.0,0.00013698,3]
[406727056,1772123445481,-500.0,0.00013698,4]
[406727057,1772123445490,-500.0,0.00013698,5]
[406727058,1772123445500,-500.0,0.00013698,6]
[406727059,1772123445510,-500.0,0.00013698,7]
[406727060,1772123445520,-500.0,0.00013698,8]
[406727061,1772123445529,-500.0,0.00013698,9]
[406727062,1772123445538,-500.0,0.00013698,10]
[406727064,1772123445548,-500.0,0.00013698,11]
[406727065,1772123445557,-500.0,0.00013698,2]
[406727066,1772123445571,-500.0,0.00013698,2]
[406727067,1772123445581,-500.0,0.00013698,2]
[406727068,1772123445591,-500.0,0.00013698,2]
[406727069,1772123445601,-500.0,0.00013698,2]
[406727070,1772123445612,-500.0,0.00013698,2]
[406727071,1772123445621,-500.0,0.00013698,2]
[406727072,1772123445631,-500.0,0.00013698,2]
[406727073,1772123445641,-500.0,0.00013698,2]
[406727074,1772123445651,-405.62075362,0.00013698,2]
[406727075,1772123445660,-500.0,0.00013698,2]
[406727076,1772123445670,-500.0,0.00013698,2]
[406727077,1772123445680,-500.0,0.00013698,2]
[406727078,1772123445689,-500.0,0.00013698,2]
[406727079,1772123445698,-500.0,0.00013698,2]
[406727080,1772123445707,-500.0,0.00013698,2]
[406727081,1772123445717,-500.0,0.00013698,2]
[406727082,1772123445727,-500.0,0.00013698,2]
[406727083,1772123445736,-500.0,0.00013698,2]
[406727084,1772123445746,-500.0,0.00013698,2]
[406727085,1772123445755,-500.0,0.00013698,2]
[406727086,1772123445764,-500.0,0.00013698,2]
[406727087,1772123445774,-409.20397161,0.00013698,2]
[406727088,1772123445784,-200.0,0.00013699,2]
[406727089,1772123445794,-271.25,0.00013699,2]
[406727090,1772123445803,-226.04,0.00013699,2]
[406727091,1772123445812,-188.37,0.00013699,2]
[406727092,1772123445822,-156.97,0.00013699,2]
[406727093,1772123445832,-784.9,0.00013699,2]
[406727094,1772123445841,-286.0347097,0.00013741,2]
[406727095,1772123445850,-2641.30302154,0.00013741,2]
[406727096,1772123445860,-265.939744,0.00014003,7]
[406727097,1772123445870,-3500.0,0.00014116,2]
[406727098,1772123445880,-500.0,0.00014174,2]
[406727099,1772123445890,-500.0,0.00014174,12]
[406727100,1772123445900,-27067.80659463,0.00014202,2]
[406727101,1772123445909,-224.40086961,0.00014224,2]
[406727102,1772123445919,-4991.64015429,0.00014335,2]
[406727103,1772123445928,-710.3,0.000145,2]
[406727104,1772123445937,-166.66,0.00014534,2]
[406727105,1772123445947,-151.0,0.00014634,2]
[406727106,1772123445957,-2966.1264312,0.00014664,2]
[406727107,1772123445968,-152.0,0.00014721,3]
[406727108,1772123445977,-166.66,0.0001484,2]
[406727109,1772123445986,-1170.42,0.00014949,2]
[406727110,1772123445996,-250.0,0.00015,2]
[406727111,1772123446005,-1000.0,0.00015107,2]
[406727112,1772123446014,-502.0,0.0001512,2]
[406727113,1772123446023,-27067.80659463,0.00015126,2]
[406727114,1772123446032,-166.66,0.00015146,2]
[406727115,1772123446041,-546.178925,0.00015431,7]
[406727116,1772123446050,-2919.924799,0.00015431,7]
[406727117,1772123446060,-166.66,0.00015452,2]
[406727118,1772123446069,-1277.0,0.00015501,2]
[406727119,1772123446078,-1211.0,0.00015501,2]
[406727120,1772123446087,-920.0,0.00015501,2]
[406727121,1772123446097,-2456.0,0.00015501,2]
[406727122,1772123446107,-1041.0,0.00015501,2]
[406727123,1772123446115,-4991.64015429,0.00015523,2]
[406727124,1772123446124,-175.26,0.00015685,2]
[406727125,1772123446133,-166.66,0.00015758,2]
[406727126,1772123446143,-202.67,0.00015944,14]
[406727127,1772123446152,-202.68,0.00015944,14]
[406727128,1772123446162,-27067.80659463,0.00016051,2]
[406727129,1772123446172,-166.66,0.00016064,2]
[406727130,1772123446181,-500.0,0.00016199,2]
[406727131,1772123446190,-500.0,0.00016199,2]
[406727132,1772123446200,-500.0,0.00016199,13]
[406727133,1772123446209,-500.0,0.00016199,14]
[406727134,1772123446219,-150.0,0.000162,2]
[406727135,1772123446228,-150.0,0.000162,2]
[406727136,1772123446239,-187.29970089,0.000162,2]
[406727137,1772123446248,-150.0,0.000162,2]
[406727138,1772123446259,-150.0,0.000162,2]
[406727139,1772123446269,-150.0,0.000162,2]
[406727140,1772123446278,-150.0,0.000162,2]
[406727141,1772123446288,-150.0,0.000162,2]
[406727142,1772123446298,-150.0,0.000162,2]
[406727143,1772123446308,-150.0,0.000162,2]
[406727144,1772123446318,-156.66979557,0.000162,2]
[406727145,1772123446327,-339.21457322,0.000162,2]
[406727146,1772123446337,-150.0,0.000162,2]
[406727147,1772123446346,-150.0,0.000162,2]
[406727148,1772123446356,-150.0,0.000162,2]
[406727149,1772123446366,-187.29970089,0.00016218,2]
[406727150,1772123446375,-156.66979557,0.00016218,2]
[406727151,1772123446385,-339.21457322,0.00016218,2]
[406727152,1772123446395,-150.0,0.00016221,2]
[406727153,1772123446404,-150.0,0.00016227,2]
[406727154,1772123446414,-150.0,0.00016227,2]
[406727155,1772123446424,-187.29970089,0.00016236,2]
[406727156,1772123446433,-156.66979557,0.00016236,2]
[406727157,1772123446547,-339.21457322,0.00016236,2]
[406727158,1772123446557,-150.0,0.00016242,2]
[406727159,1772123446567,-150.0,0.00016245,2]
[406727160,1772123446582,-150.0,0.00016253,2]
[406727161,1772123446593,-150.0,0.00016254,2]
[406727162,1772123446602,-187.29970089,0.00016255,2]
[406727163,1772123446612,-156.66979557,0.00016255,2]
[406727164,1772123446622,-339.21457322,0.00016255,2]
[406727165,1772123446632,-150.0,0.00016255,2]
[406727166,1772123446642,-150.0,0.00016263,2]
[406727167,1772123446655,-187.29970089,0.00016273,2]
[406727168,1772123446665,-156.66979557,0.00016273,2]
[406727169,1772123446674,-339.21457322,0.00016273,2]
[406727170,1772123446683,-150.0,0.00016278,2]
[406727171,1772123446693,-150.0,0.00016278,2]
[406727172,1772123446702,-150.0,0.00016281,2]
[406727173,1772123446711,-581.0,0.00016281,2]
[406727174,1772123446721,-150.0,0.00016281,2]
[406727175,1772123446730,-150.0,0.00016281,2]
[406727176,1772123446740,-150.0,0.00016281,2]
[406727177,1772123446749,-181.0,0.00016281,2]
[406727178,1772123446758,-150.0,0.00016282,2]
[406727179,1772123446768,-633.0,0.00016282,2]
[406727180,1772123446778,-150.0,0.00016282,2]
[406727181,1772123446788,-150.0,0.00016282,2]
[406727182,1772123446797,-150.0,0.00016282,2]
[406727183,1772123446806,-275.0,0.00016282,2]
[406727184,1772123446816,-150.0,0.00016284,2]
[406727185,1772123446825,-150.0,0.0001629,2]
[406727186,1772123446834,-187.29970089,0.00016291,2]
[406727187,1772123446843,-156.66979557,0.00016291,2]
[406727188,1772123446852,-339.21457322,0.00016291,2]
[406727189,1772123446861,-150.0,0.00016305,2]
[406727190,1772123446871,-150.0,0.00016306,2]
[406727191,1772123446880,-150.0,0.00016307,2]
[406727192,1772123446889,-187.29970089,0.00016309,2]
[406727193,1772123446898,-156.66979557,0.00016309,2]
[406727194,1772123446906,-339.21457322,0.00016309,2]
[406727195,1772123446914,-150.0,0.00016309,2]
[406727196,1772123446923,-150.0,0.00016326,2]
[406727197,1772123446932,-187.29970089,0.00016327,2]
[406727198,1772123446941,-156.66979557,0.00016327,2]
[406727199,1772123446950,-339.21457322,0.00016327,2]
[406727200,1772123446960,-150.0,0.00016334,2]
[406727201,1772123446969,-150.0,0.00016335,2]
[406727202,1772123446978,-150.0,0.00016336,2]
[406727203,1772123446987,-187.29970089,0.00016345,2]
[406727204,1772123446996,-156.66979557,0.00016345,2]
[406727205,1772123447006,-339.21457322,0.00016345,2]
[406727206,1772123447015,-150.0,0.00016347,2]
[406727207,1772123447025,-700.0,0.00016356,2]
[406727208,1772123447034,-500.0,0.00016356,2]
[406727209,1772123447043,-500.0,0.00016356,2]
[406727210,1772123447052,-150.0,0.00016357,2]
[406727211,1772123447062,-150.0,0.00016357,2]
[406727212,1772123447072,-150.0,0.00016359,2]
[406727213,1772123447081,-150.0,0.00016361,2]
[406727214,1772123447090,-187.29970089,0.00016364,2]
[406727215,1772123447101,-156.66979557,0.00016364,2]
[406727216,1772123447110,-339.21457322,0.00016364,2]
[406727217,1772123447121,-150.0,0.00016364,2]
[406727218,1772123447130,-150.0,0.00016367,2]
[406727219,1772123447139,-175.26,0.0001637,2]
[406727220,1772123447148,-150.0,0.0001638,2]
[406727221,1772123447157,-150.0,0.0001638,2]
[406727222,1772123447167,-187.29970089,0.00016382,2]
[406727223,1772123447176,-156.66979557,0.00016382,2]
[406727224,1772123447185,-339.21457322,0.00016382,2]
[406727225,1772123447194,-150.0,0.00016388,2]
[406727226,1772123447204,-150.0,0.00016388,2]
[406727227,1772123447213,-150.0,0.00016391,2]
[406727228,1772123447222,-187.29970089,0.000164,2]
[406727229,1772123447232,-156.66979557,0.000164,2]
[406727230,1772123447241,-339.21457322,0.000164,2]
[406727231,1772123447250,-150.0,0.00016409,2]
[406727232,1772123447259,-150.0,0.00016412,2]
[406727233,1772123447268,-150.0,0.00016415,2]
[406727234,1772123447279,-187.29970089,0.00016418,2]
[406727235,1772123447289,-156.66979557,0.00016418,2]
[406727236,1772123447299,-339.21457322,0.00016418,2]
[406727237,1772123447309,-150.0,0.00016418,2]
[406727238,1772123447319,-152.0,0.00016424,4]
[406727239,1772123447331,-150.0,0.00016425,2]
[406727240,1772123447340,-150.0,0.0001643,2]
[406727241,1772123447349,-150.0,0.00016435,2]
[406727242,1772123447359,-150.0,0.00016435,2]
[406727243,1772123447368,-187.29970089,0.00016436,2]
[406727244,1772123447378,-156.66979557,0.00016436,2]
[406727245,1772123447387,-339.21457322,0.00016436,2]
[406727246,1772123447397,-606.4,0.00016438,2]
[406727247,1772123447407,-500.0,0.00016438,2]
[406727248,1772123447417,-150.0,0.00016442,2]
[406727249,1772123447426,-150.0,0.00016445,2]
[406727250,1772123447437,-500.0,0.0001645,2]
[406727251,1772123447447,-150.0,0.00016451,2]
[406727252,1772123447456,-152.0,0.00016454,30]
[406727253,1772123447466,-187.29970089,0.00016455,2]
[406727254,1772123447474,-156.66979557,0.00016455,2]
[406727255,1772123447484,-339.21457322,0.00016455,2]
[406727256,1772123447493,-150.0,0.00016457,2]
[406727257,1772123447503,-150.0,0.00016457,2]
[406727258,1772123447513,-150.0,0.00016465,2]
[406727259,1772123447522,-150.0,0.00016469,2]
[406727260,1772123447531,-150.0,0.0001647,2]
[406727261,1772123447540,-150.0,0.00016472,2]
[406727262,1772123447550,-187.29970089,0.00016473,2]
[406727263,1772123447559,-339.21457322,0.00016473,2]
[406727264,1772123447575,-156.66979557,0.00016473,2]
[406727265,1772123447584,-150.0,0.00016473,2]
[406727266,1772123447593,-187.29970089,0.00016491,2]
[406727267,1772123447603,-156.66979557,0.00016491,2]
[406727268,1772123447613,-339.21457322,0.00016491,2]
[406727269,1772123447623,-202.67,0.00016492,14]
[406727270,1772123447632,-202.68,0.00016492,14]
[406727271,1772123447642,-500.0,0.00016493,2]
[406727272,1772123447651,-150.0,0.00016493,2]
[406727273,1772123447661,-150.0,0.00016496,2]
[406727274,1772123447670,-150.0,0.000165,2]
[406727275,1772123447680,-187.29970089,0.00016509,2]
[406727276,1772123447689,-156.66979557,0.00016509,2]
[406727277,1772123447699,-339.21457322,0.00016509,2]
[406727278,1772123447708,-150.0,0.00016513,2]
[406727279,1772123447719,-150.0,0.00016513,2]
[406727280,1772123447728,-150.0,0.00016514,2]
[406727281,1772123447738,-150.0,0.00016515,2]
[406727282,1772123447747,-150.0,0.00016518,2]
[406727283,1772123447757,-150.0,0.00016522,2]
[406727284,1772123447766,-187.29970089,0.00016527,2]
[406727285,1772123447776,-156.66979557,0.00016527,2]
[406727286,1772123447785,-339.21457322,0.00016527,2]
[406727287,1772123447794,-150.0,0.00016527,2]
[406727288,1772123447804,-150.0,0.00016535,2]
[406727289,1772123447814,-187.29970089,0.00016545,2]
[406727290,1772123447823,-156.66979557,0.00016545,2]
[406727291,1772123447832,-339.21457322,0.00016545,2]
[406727292,1772123447841,-500.0,0.00016548,2]
[406727293,1772123447850,-150.0,0.00016549,2]
[406727294,1772123447859,-150.0,0.00016555,2]
[406727295,1772123447869,-150.0,0.00016556,2]
[406727296,1772123447878,-150.0,0.0001656,2]
[406727297,1772123447887,-150.0,0.0001656,2]
[406727298,1772123447897,-187.29970089,0.00016564,2]
[406727299,1772123447906,-156.66979557,0.00016564,2]
[406727300,1772123447916,-339.21457322,0.00016564,2]
[406727301,1772123447926,-150.0,0.00016571,2]
[406727302,1772123447935,-150.0,0.00016576,2]
[406727303,1772123447944,-150.0,0.00016577,2]
[406727304,1772123447953,-187.29970089,0.00016582,2]
[406727305,1772123447962,-156.66979557,0.00016582,2]
[406727306,1772123447973,-339.21457322,0.00016582,2]
[406727307,1772123447986,-150.0,0.00016582,2]
[406727308,1772123447996,-150.0,0.00016591,2]
[406727309,1772123448005,-150.0,0.00016591,2]
[406727310,1772123448015,-150.0,0.00016598,2]
[406727311,1772123448024,-187.29970089,0.000166,2]
[406727312,1772123448033,-156.66979557,0.000166,2]
[406727313,1772123448043,-339.21457322,0.000166,2]
[406727314,1772123448052,-500.0,0.00016602,2]
[406727315,1772123448062,-150.0,0.00016603,2]
[406727316,1772123448072,-150.0,0.00016605,2]
[406727317,1772123448082,-150.0,0.00016609,2]
[406727318,1772123448091,-187.29970089,0.00016618,2]
[406727319,1772123448101,-156.66979557,0.00016618,2]
[406727320,1772123448110,-339.21457322,0.00016618,2]
[406727321,1772123448120,-150.0,0.00016619,2]
[406727322,1772123448129,-150.0,0.00016624,2]
[406727323,1772123448139,-587.0,0.00016625,2]
[406727324,1772123448148,-150.0,0.00016625,2]
[406727325,1772123448158,-150.0,0.00016625,2]
[406727326,1772123448168,-150.0,0.00016625,2]
[406727327,1772123448181,-150.0,0.00016625,2]
[406727328,1772123448191,-150.0,0.00016625,2]
[406727329,1772123448201,-150.0,0.00016625,2]
[406727330,1772123448210,-150.0,0.00016625,2]
[406727331,1772123448219,-268.0,0.00016625,2]
[406727332,1772123448229,-150.0,0.0001663,2]
[406727333,1772123448239,-187.29970089,0.00016636,2]
[406727334,1772123448248,-156.66979557,0.00016636,2]
[406727335,1772123448258,-339.21457322,0.00016636,2]
[406727336,1772123448268,-150.0,0.00016636,2]
[406727337,1772123448403,-150.0,0.0001664,2]
[406727338,1772123448413,-150.0,0.0001665,2]
[406727339,1772123448422,-187.29970089,0.00016655,2]
[406727340,1772123448431,-156.66979557,0.00016655,2]
[406727341,1772123448440,-339.21457322,0.00016655,2]
[406727342,1772123448449,-150.0,0.00016657,2]
[406727343,1772123448458,-500.0,0.00016657,2]
[406727344,1772123448468,-150.0,0.0001666,2]
[406727345,1772123448477,-150.0,0.00016664,2]
[406727346,1772123448486,-502.0,0.00016665,3]
[406727347,1772123448495,-150.0,0.0001667,2]
[406727348,1772123448503,-150.0,0.0001667,2]
[406727349,1772123448513,-187.29970089,0.00016673,2]
[406727350,1772123448522,-156.66979557,0.00016673,2]
[406727351,1772123448532,-339.21457322,0.00016673,2]
[406727352,1772123448541,-150.0,0.00016676,2]
[406727353,1772123448550,-150.0,0.00016681,2]
[406727354,1772123448560,-150.0,0.00016684,2]
[406727355,1772123448569,-187.29970089,0.00016691,2]
[406727356,1772123448581,-156.66979557,0.00016691,2]
[406727357,1772123448590,-339.21457322,0.00016691,2]
[406727358,1772123448599,-150.0,0.00016691,2]
[406727359,1772123448608,-150.0,0.00016695,2]
[406727360,1772123448617,-150.0,0.00016702,2]
[406727361,1772123448626,-187.29970089,0.00016709,2]
[406727362,1772123448635,-156.66979557,0.00016709,2]
[406727363,1772123448647,-339.21457322,0.00016709,2]
[406727364,1772123448656,-150.0,0.0001671,2]
[406727365,1772123448665,-4991.64015429,0.00016712,2]
[406727366,1772123448674,-500.0,0.00016712,2]
[406727367,1772123448683,-606.4,0.00016712,2]
[406727368,1772123448692,-150.0,0.00016714,2]
[406727369,1772123448701,-150.0,0.00016714,2]
[406727370,1772123448710,-150.0,0.00016718,2]
[406727371,1772123448719,-160.0,0.0001672,2]
[406727372,1772123448729,-1212.0,0.0001672,2]
[406727373,1772123448738,-150.0,0.00016723,2]
[406727374,1772123448747,-187.29970089,0.00016727,2]
[406727375,1772123448756,-156.66979557,0.00016727,2]
[406727376,1772123448765,-339.21457322,0.00016727,2]
[406727377,1772123448774,-150.0,0.00016729,2]
[406727378,1772123448783,-150.0,0.00016737,2]
[406727379,1772123448792,-150.0,0.0001674,2]
[406727380,1772123448802,-150.0,0.0001674,2]
[406727381,1772123448811,-150.0,0.00016744,2]
[406727382,1772123448820,-187.29970089,0.00016745,2]
[406727383,1772123448828,-156.66979557,0.00016745,2]
[406727384,1772123448837,-339.21457322,0.00016745,2]
[406727385,1772123448846,-150.0,0.00016745,2]
[406727386,1772123448855,-150.0,0.00016748,2]
[406727387,1772123448864,-150.0,0.00016748,2]
[406727388,1772123448873,-187.29970089,0.00016764,2]
[406727389,1772123448882,-156.66979557,0.00016764,2]
[406727390,1772123448891,-339.21457322,0.00016764,2]
[406727391,1772123448899,-150.0,0.00016764,2]
[406727392,1772123448908,-150.0,0.00016765,2]
[406727393,1772123448917,-500.0,0.00016767,2]
[406727394,1772123448926,-150.0,0.00016773,2]
[406727395,1772123448934,-187.29970089,0.00016782,2]
[406727396,1772123448943,-156.66979557,0.00016782,2]
[406727397,1772123448952,-339.21457322,0.00016782,2]
[406727398,1772123448960,-150.0,0.00016782,2]
[406727399,1772123448970,-150.0,0.00016785,2]
[406727400,1772123448979,-150.0,0.00016786,2]
[406727401,1772123448988,-1000.0,0.00016786,2]
[406727402,1772123448997,-150.0,0.00016791,2]
[406727403,1772123449006,-200.0,0.00016792,2]
[406727404,1772123449015,-187.29970089,0.000168,2]
[406727405,1772123449024,-150.0,0.000168,2]
[406727406,1772123449033,-156.66979557,0.000168,2]
[406727407,1772123449042,-339.21457322,0.000168,2]
[406727408,1772123449051,-150.0,0.000168,2]
[406727409,1772123449060,-150.0,0.00016807,2]
[406727410,1772123449068,-1170.42,0.00016818,2]
[406727411,1772123449077,-150.0,0.00016818,2]
[406727412,1772123449086,-187.29970089,0.00016818,2]
[406727413,1772123449095,-156.66979557,0.00016818,2]
[406727414,1772123449104,-339.21457322,0.00016818,2]
[406727415,1772123449113,-379.89029775,0.00016822,2]
[406727416,1772123449122,-150.0,0.00016826,2]
[406727417,1772123449131,-150.0,0.00016826,2]
[406727418,1772123449140,-150.0,0.00016827,2]
[406727419,1772123449149,-150.0,0.00016828,2]
[406727420,1772123449158,-150.0,0.0001683,2]
[406727421,1772123449167,-150.0,0.00016835,2]
[406727422,1772123449176,-187.29970089,0.00016836,2]
[406727423,1772123449185,-156.66979557,0.00016836,2]
[406727424,1772123449194,-339.21457322,0.00016836,2]
[406727425,1772123449203,-150.0,0.00016845,2]
[406727426,1772123449212,-150.0,0.00016849,2]
[406727427,1772123449223,-187.29970089,0.00016855,2]
[406727428,1772123449231,-156.66979557,0.00016855,2]
[406727429,1772123449241,-339.21457322,0.00016855,2]
[406727430,1772123449251,-150.0,0.00016855,2]
[406727431,1772123449261,-150.0,0.0001687,2]
[406727432,1772123449270,-150.0,0.00016872,2]
[406727433,1772123449279,-187.29970089,0.00016873,2]
[406727434,1772123449288,-156.66979557,0.00016873,2]
[406727435,1772123449298,-339.21457322,0.00016873,2]
[406727436,1772123449307,-150.0,0.00016875,2]
[406727437,1772123449317,-150.0,0.00016882,2]
[406727438,1772123449326,-150.0,0.00016888,2]
[406727439,1772123449336,-150.0,0.00016891,2]
[406727440,1772123449345,-187.29970089,0.00016891,2]
[406727441,1772123449355,-156.66979557,0.00016891,2]
[406727442,1772123449364,-339.21457322,0.00016891,2]
[406727443,1772123449374,-150.0,0.00016899,2]
[406727444,1772123449384,-150.0,0.00016904,2]
[406727445,1772123449394,-150.0,0.00016904,2]
[406727446,1772123449405,-187.29970089,0.00016909,2]
[406727447,1772123449415,-156.66979557,0.00016909,2]
[406727448,1772123449425,-339.21457322,0.00016909,2]
[406727449,1772123449434,-150.0,0.00016909,2]